bitfinex/quotes_ETHUSD_20230703
["timestamp","ask_amount","ask_price","bid_price","bid_amount"]
[1688377509923,35.6583,1961.5,1960.9,14.2082874]
[1688377510100,2.55878816,1961.4,1960.9,16.4008874]
[1688377510300,7.65731816,1961.4,1961.0,1.64008874]
[1688377510502,7.65731816,1961.4,1961.1,10.19824]
[1688377512070,1.5255,1961.5,1961.1,10.19824]
[1688377512276,2.55878816,1961.5,1961.1,12.74782]
[1688377512579,2.55878816,1961.5,1961.3,5.09865]
[1688377513025,7.65693816,1961.5,1961.3,5.09865]
[1688377514178,12.75508816,1961.5,1961.3,5.09865]
[1688377526256,7.65693816,1961.5,1961.3,5.09865]
[1688377528033,7.65693816,1961.5,1961.3,10.1973]
[1688377529658,7.65693816,1961.5,1961.3,11.624585]
[1688377529659,2.55878816,1961.5,1961.3,11.624585]
[1688377529959,6.62323,1961.7,1961.3,11.624585]
[1688377530158,2.55878816,1961.6,1961.3,11.624585]
[1688377532035,2.55878816,1961.6,1961.3,14.173905]
[1688377532357,0.00309553,1961.5,1961.3,14.173905]
[1688377532536,0.00309553,1961.5,1961.4,11.6141705]
[1688377534446,0.00309553,1961.5,1961.4,14.1633605]
[1688377535165,5.0972,1961.9,1961.4,14.1633605]
[1688377535327,2.55878816,1961.8,1961.4,14.1633605]
[1688377535755,7.65618816,1961.8,1961.4,14.1633605]
[1688377535963,7.65618816,1961.8,1961.6,5.09787]
[1688377536290,7.65618816,1961.8,1961.2,3.83645]
[1688377536291,0.00311463,1961.7,1961.2,5.09878]
[1688377536443,0.00311463,1961.7,1961.3,10.19719]
[1688377536444,2.55878816,1961.6,1961.3,10.19719]
[1688377536762,7.65681816,1961.6,1961.3,5.09854]
[1688377537168,0.00309553,1961.5,1961.3,5.09854]
[1688377543834,5.10125553,1961.5,1961.2,5.09874]
[1688377544037,10.19941553,1961.5,1961.2,5.09874]
[1688377545888,0.00309553,1961.5,1961.2,10.19765]
[1688377546384,5.10123553,1961.5,1961.2,10.19765]
[1688377548541,2.55878816,1961.4,1961.2,10.19765]
[1688377549235,0.00307643,1961.3,1961.2,10.19765]
[1688377550079,0.00307643,1961.3,1961.2,5.09874]
[1688377550288,2.55878816,1961.4,1961.1,10.19813]
[1688377550496,7.65723816,1961.4,1961.0,5.51185772]
[1688377550793,12.75568816,1961.4,1961.0,10.61118772]
[1688377551153,0.00307643,1961.3,1961.0,10.61118772]
[1688377551354,2.55878816,1961.2,1961.0,10.61118772]
[1688377551772,2.55878816,1961.2,1961.0,13.16089772]
[1688377552281,0.00305733,1961.1,1961.0,13.16089772]
[1688377553674,0.00305733,1961.1,1961.0,10.61118772]
[1688377554679,0.00305733,1961.1,1961.0,13.16089772]
[1688377557412,0.00305733,1961.1,1961.0,14.74496776]
[1688377579277,2.55878816,1961.2,1961.0,14.74496776]
[1688377580568,2.55878816,1961.2,1961.0,10.61118772]
[1688377580898,2.55878816,1961.2,1961.0,13.16089772]
[1688377582491,2.55878816,1961.2,1961.0,10.61118772]
[1688377585652,2.55878816,1961.2,1961.0,10.19866]
[1688377586877,2.55878816,1961.2,1961.0,10.19876]
[1688377587179,7.65774816,1961.2,1961.0,10.19876]
[1688377588382,2.55878816,1961.2,1961.0,10.19876]
[1688377593458,2.55878816,1961.2,1961.0,12.74847]
[1688377601623,2.55878816,1961.2,1961.0,10.19876]
[1688377602137,2.55878816,1961.2,1961.0,12.74847]
[1688377602843,2.55878816,1961.2,1961.0,10.19876]
[1688377603146,2.55878816,1961.2,1960.8,2.1705]
[1688377603330,2.55878816,1961.2,1960.9,10.19922]
[1688377603331,7.65769816,1961.2,1960.9,10.19922]
[1688377603533,7.65769816,1961.2,1960.9,5.09953]
[1688377603845,7.65769816,1961.2,1960.9,10.19922]
[1688377604012,2.55878816,1961.2,1960.9,10.19922]
[1688377604202,2.55878816,1961.2,1960.9,12.74906]
[1688377604535,7.65776816,1961.2,1960.9,10.19922]
[1688377604710,12.75674816,1961.2,1960.9,10.19922]
[1688377607437,12.75674816,1961.2,1960.8,5.13169965]
[1688377607438,0.01652336,1961.1,1960.8,0.41123965]
[1688377607644,2.55878816,1961.0,1960.6,5.10038]
[1688377607836,2.55878816,1961.0,1960.5,9.15569]
[1688377608013,10.1995,1960.9,1960.5,15.171889]
[1688377608212,2.55878816,1960.8,1960.5,10.071259]
[1688377608528,7.65882816,1960.8,1960.5,10.071259]
[1688377608726,7.65882816,1960.8,1960.5,10.47825237]
[1688377608727,12.75886816,1960.8,1960.5,10.47825237]
[1688377609265,7.65882816,1960.8,1960.5,15.57898237]
[1688377609938,7.65882816,1960.8,1960.5,18.12934237]
[1688377610357,2.55878816,1960.8,1960.5,18.12934237]
[1688377611830,7.65874816,1960.8,1960.5,18.12934237]
[1688377613644,7.65874816,1960.8,1960.5,15.57898237]
[1688377614956,12.75870816,1960.8,1960.5,14.66341337]
[1688377616898,7.65874816,1960.8,1960.5,14.66341337]
[1688377618352,12.75870816,1960.8,1960.5,10.60831337]
[1688377620561,12.75870816,1960.8,1960.5,5.50758337]
[1688377621266,12.75870816,1960.8,1960.5,10.60831337]
[1688377621467,12.75870816,1960.8,1960.5,10.20132]
[1688377621965,12.75870816,1960.8,1960.4,0.39938081]
[1688377621966,0.48,1960.7,1960.4,0.39938081]
[1688377622185,2.55878816,1960.6,1960.3,6.39705]
[1688377622371,12.75972816,1960.6,1960.3,5.77147479]
[1688377622572,12.75972816,1960.6,1960.4,5.10094]
[1688377622767,12.75972816,1960.6,1960.3,5.10113]
[1688377623205,12.75972816,1960.6,1960.3,10.20239]
[1688377623708,7.65925816,1960.6,1960.3,10.20239]
[1688377625376,7.65925816,1960.6,1960.3,10.61320136]
[1688377625705,7.65925816,1960.6,1960.3,13.16383136]
[1688377629110,12.75972816,1960.6,1960.3,10.61320136]
[1688377629638,12.75972816,1960.6,1960.3,5.51194136]
[1688377629809,15.30995816,1960.6,1960.3,5.51196136]
[1688377630015,12.75972816,1960.6,1960.3,10.61322136]
[1688377630644,7.65925816,1960.6,1960.3,10.61322136]
[1688377631926,12.75972816,1960.6,1960.3,10.61322136]
[1688377632836,7.65925816,1960.6,1960.3,10.61322136]
[1688377633040,7.65925816,1960.6,1960.3,5.51196136]
[1688377633041,0.48,1960.5,1960.3,5.51196136]
[1688377633237,2.55878816,1960.4,1960.3,10.61322136]
[1688377634547,2.55878816,1960.4,1960.3,0.41081136]
[1688377634740,2.55878816,1960.4,1960.3,5.51207136]
[1688377634900,2.55878816,1960.4,1960.2,6.39737]
[1688377634901,7.65977816,1960.4,1960.2,5.10126]
[1688377635107,12.76076816,1960.4,1960.2,5.10126]
[1688377635548,12.76076816,1960.4,1960.1,9.12329]
[1688377635907,12.76076816,1960.4,1960.1,14.22494]
[1688377636108,7.65977816,1960.4,1960.1,14.22494]
[1688377636433,7.65977816,1960.4,1960.1,16.77583]
[1688377636635,2.55878816,1960.4,1960.1,16.77583]
[1688377636940,7.65983816,1960.4,1960.1,16.77583]
[1688377637146,2.55878816,1960.4,1960.1,17.17774306]
[1688377637317,2.55878816,1960.4,1960.1,14.62685306]
[1688377637318,7.65980816,1960.4,1960.1,14.62685306]
[1688377637648,7.65980816,1960.4,1960.1,15.40454306]
[1688377638335,12.76082816,1960.4,1960.1,12.85365306]
[1688377638644,12.76082816,1960.4,1960.1,10.60515306]
[1688377638834,5.58134,1960.3,1960.1,10.60515306]
[1688377639153,2.55878816,1960.2,1960.1,10.60515306]
[1688377639449,2.55878816,1960.2,1960.1,5.50350306]
[1688377639608,2.55878816,1960.2,1960.1,0.40191306]
[1688377639811,2.55878816,1960.2,1960.0,11.91387]
[1688377640009,2.55878816,1960.2,1960.1,5.10178]
[1688377640448,2.55878816,1960.2,1960.0,5.50065808]
[1688377640947,2.55878816,1960.2,1960.0,10.60269808]
[1688377641243,7.66040816,1960.2,1960.0,5.50066808]
[1688377641745,7.66040816,1960.2,1960.0,0.39873808]
[1688377641931,7.66040816,1960.2,1960.0,5.10204]
[1688377642247,12.76192816,1960.2,1959.9,10.40681]
[1688377642450,15.31268816,1960.2,1959.9,9.12281]
[1688377642612,12.76192816,1960.2,1959.9,14.22511]
[1688377642944,7.66030816,1960.2,1959.9,14.22511]
[1688377644028,7.66030816,1960.2,1959.9,12.51511]
[1688377644534,5.58185,1960.1,1959.9,10.60975492]
[1688377644736,2.55878816,1960.0,1959.9,10.60975492]
[1688377645964,2.55878816,1960.0,1959.9,13.16090492]
[1688377646139,2.55878816,1960.0,1959.9,14.65262541]
[1688377646663,5.11763336,1960.4,1959.9,14.65262541]
[1688377646874,3.03878816,1960.3,1959.9,16.90072541]
[1688377647039,8.14007816,1960.3,1959.9,16.90072541]
[1688377647460,8.14007816,1960.3,1959.9,16.85072541]
[1688377647758,0.02704846,1960.2,1959.9,16.85072541]
[1688377647944,2.55878816,1960.1,1959.9,16.85072541]
[1688377648741,2.55878816,1960.1,1960.0,1.57570805]
[1688377649080,2.55878816,1960.1,1960.0,11.77978805]
[1688377653970,2.55878816,1960.1,1960.0,14.33080805]
[1688377655884,0.04287867,1960.4,1960.0,14.33080805]
[1688377656043,2.55878816,1960.3,1960.0,12.7551]
[1688377658261,7.66008816,1960.3,1960.0,12.7551]
[1688377659128,7.66008816,1960.3,1960.0,10.20408]
[1688377659329,12.76138816,1960.3,1960.0,10.20408]
[1688377660190,12.76138816,1960.3,1959.9,0.40534492]
[1688377660483,0.48,1960.2,1959.9,10.20424]
[1688377660648,2.55878816,1960.1,1959.9,12.58074]
[1688377664831,2.55878816,1960.1,1959.9,15.13189]
[1688377667689,2.55878816,1960.1,1959.9,12.58074]
[1688377667859,2.55878816,1960.1,1959.9,10.20424]
[1688377671056,2.97504736,1960.1,1959.9,10.20424]
[1688377671256,2.97504736,1960.1,1960.0,1.020424]
[1688377671608,2.97504736,1960.1,1960.0,10.20408]
[1688377671928,3.00368716,1960.1,1960.0,10.20408]
[1688377672779,2.97504736,1960.1,1960.0,5.10204]
[1688377673293,2.58742796,1960.1,1960.0,5.10204]
[1688377673975,2.55878816,1960.1,1960.0,5.10204]
[1688377674365,2.58742796,1960.1,1960.0,5.10204]
[1688377674706,2.55878816,1960.1,1960.0,5.10204]
[1688377676291,2.58627568,1960.1,1960.0,5.10204]
[1688377676794,2.55878816,1960.1,1960.0,5.10204]
[1688377677501,2.55878816,1960.1,1959.9,5.10217]
[1688377677998,0.02836022,1960.0,1959.9,5.10217]
[1688377679609,0.02836022,1960.0,1959.9,6.33828431]
[1688377679804,0.02836022,1960.0,1959.9,11.44058431]
[1688377680014,2.58714838,1960.0,1959.9,11.44058431]
[1688377680309,2.55878816,1960.0,1959.9,10.20447]
[1688377684418,2.55878816,1960.0,1959.9,12.75562]
[1688377684984,2.55878816,1960.0,1959.9,10.20447]
[1688377689943,2.55878816,1960.0,1959.9,5.10217]
[1688377691355,5.11766336,1960.4,1959.9,12.75562]
[1688377691660,7.66005816,1960.3,1959.9,12.75562]
[1688377692043,7.66005816,1960.3,1959.9,16.82152]
[1688377692570,0.02760005,1960.2,1959.9,16.82152]
[1688377692777,2.55878816,1960.1,1959.9,16.82152]
[1688377692944,2.55878816,1960.1,1959.9,15.00662]
[1688377693673,0.02823024,1960.0,1959.9,15.00662]
[1688377694564,2.55878816,1960.1,1959.9,15.00662]
[1688377699256,0.02881608,1960.0,1959.9,15.00662]
[1688377699453,2.55878816,1960.1,1959.9,15.00662]
[1688377706714,2.48978816,1960.1,1959.9,15.00662]
[1688377707056,2.45778816,1960.1,1959.9,15.00662]
[1688377708213,2.45778816,1960.1,1959.9,16.72416731]
[1688377710170,2.45778816,1960.1,1959.9,15.00662]
[1688377710830,2.45778816,1960.1,1959.9,12.45547]
[1688377710971,2.45778816,1960.1,1959.9,10.20447]
[1688377714289,7.55963816,1960.1,1959.9,10.20447]
[1688377730830,2.45778816,1960.1,1959.9,10.20447]
[1688377731141,7.55956816,1960.1,1959.9,10.20447]
[1688377737039,7.55956816,1960.1,1959.9,5.10217]
[1688377737405,12.66134816,1960.1,1959.9,5.10217]
[1688377737807,7.55956816,1960.1,1959.9,5.10217]
[1688377747566,7.55956816,1960.1,1959.8,12.41837307]
[1688377747567,12.66134816,1960.1,1959.8,12.41837307]
[1688377747767,0.02607568,1960.0,1959.8,12.41837307]
[1688377747968,2.55878816,1959.9,1959.8,12.41837307]
[1688377748129,2.55878816,1959.9,1959.8,10.70507307]
[1688377748531,2.55878816,1959.9,1959.8,5.60265307]
[1688377748732,2.55878816,1959.9,1959.8,0.50025307]
[1688377748937,7.66108816,1959.9,1959.8,0.50025307]
[1688377749536,7.66108816,1959.9,1959.8,0.1]
[1688377749537,15.31453816,1959.9,1959.8,0.1]
[1688377749734,2.55878816,1959.9,1959.8,0.1]
[1688377749987,2.55878816,1959.9,1959.8,5.20256]
[1688377750342,2.58878622,1959.9,1959.8,5.20256]
[1688377751036,2.55878816,1959.9,1959.8,5.20256]
[1688377751478,7.66108816,1959.9,1959.8,5.20256]
[1688377751653,2.55878816,1959.9,1959.8,5.20256]
[1688377751854,7.66108816,1959.9,1959.8,0.1]
[1688377752709,7.68894597,1959.9,1959.8,0.1]
[1688377752896,7.66108816,1959.9,1959.8,0.1]
[1688377754967,7.68723589,1959.9,1959.8,0.1]
[1688377755205,7.66108816,1959.9,1959.8,0.1]
[1688377764209,12.76338816,1959.9,1959.8,0.1]
[1688377766721,12.7909386,1959.9,1959.8,0.1]
[1688377767236,12.76338816,1959.9,1959.8,0.1]
[1688377768682,12.79003503,1959.9,1959.8,0.1]
[1688377768842,12.76338816,1959.9,1959.8,0.1]
[1688377769382,12.78962612,1959.9,1959.8,0.1]
[1688377769556,12.76338816,1959.9,1959.8,0.1]
[1688377769885,12.79022673,1959.9,1959.8,0.1]
[1688377771746,12.76338816,1959.9,1959.8,0.1]
[1688377771946,12.78993524,1959.9,1959.8,0.1]
[1688377772147,12.76338816,1959.9,1959.8,0.1]
[1688377772558,2.55878816,1959.9,1959.8,0.1]
[1688377772857,2.55878816,1959.9,1959.8,5.20256]
[1688377773604,7.66108816,1959.9,1959.8,5.20256]
[1688377773745,7.68721556,1959.9,1959.8,5.20256]
[1688377774494,7.68721556,1959.9,1959.8,0.1]
[1688377790732,7.66108816,1959.9,1959.8,0.1]
[1688377792532,7.66108816,1959.9,1959.8,5.20256]
[1688377792533,2.58517593,1959.9,1959.8,5.20256]
[1688377792736,2.55878816,1959.9,1959.8,5.20256]
[1688377793609,7.66108816,1959.9,1959.8,5.20256]
[1688377794236,2.55878816,1959.9,1959.8,5.20256]
[1688377794732,7.68747614,1959.9,1959.8,5.20256]
[1688377794899,7.66108816,1959.9,1959.8,5.20256]
[1688377797975,5.10195,1960.1,1959.8,11.34564]
[1688377798176,2.55878816,1960.0,1959.8,11.34564]
[1688377798538,0.04999999,1959.9,1959.8,6.24308]
[1688377800248,7.66090816,1960.0,1959.8,6.24308]
[1688377800889,7.66090816,1960.0,1959.8,1.14052]
[1688377801186,7.66090816,1960.0,1959.8,0.1]
[1688377801566,0.03210565,1959.9,1959.8,0.1]
[1688377801757,7.69319381,1959.9,1959.8,0.1]
[1688377802262,7.66108816,1959.9,1959.8,0.1]
[1688377802462,7.66108816,1959.9,1959.7,7.2795241]
[1688377802674,2.55878816,1959.8,1959.7,7.2795241]
[1688377802878,2.55878816,1959.8,1959.7,5.10278]
[1688377804467,1.64972336,1960.2,1959.7,5.10278]
[1688377804655,7.66064816,1960.1,1959.7,10.2056]
[1688377804850,2.55878816,1960.1,1959.7,10.2056]
[1688377805074,7.66072816,1960.1,1959.7,12.75701]
[1688377805279,7.66072816,1960.1,1959.7,14.57311]
[1688377805488,12.76266816,1960.1,1959.7,14.57311]
[1688377810410,0.02675064,1960.0,1959.7,14.57311]
[1688377810615,2.55878816,1959.9,1959.7,14.57311]
[1688377810917,2.55878816,1959.9,1959.7,12.75701]
[1688377816440,0.02720998,1959.8,1959.7,12.75701]
[1688377816755,2.55878816,1959.9,1959.7,14.568391]
[1688377817342,5.10208,1960.0,1959.7,14.568391]
[1688377817659,5.1011,1960.4,1959.7,19.925391]
[1688377817868,2.55878816,1960.3,1959.7,8.49842953]
[1688377818071,2.55878816,1960.3,1960.0,12.75502]
[1688377818072,7.66007816,1960.3,1960.0,12.75502]
[1688377818419,7.66007816,1960.3,1960.0,14.04602]
[1688377818936,7.66007816,1960.3,1960.0,15.450622]
[1688377819367,2.55878816,1960.3,1960.0,15.450622]
[1688377819518,0.02710258,1960.2,1960.0,15.450622]
[1688377821282,7.66005816,1960.3,1960.0,14.04602]
[1688377823164,7.66005816,1960.3,1960.0,12.75502]
[1688377825989,6.69496,1960.5,1960.1,1.291]
[1688377826300,2.55878816,1960.4,1960.2,10.20292]
[1688377826873,7.65981816,1960.4,1960.2,10.20292]
[1688377827984,0.02610083,1960.3,1960.2,10.20292]
[1688377828306,2.55878816,1960.3,1960.1,7.30439]
[1688377828490,7.66004816,1960.3,1960.0,10.62027117]
[1688377828692,2.55878816,1960.2,1960.0,5.10188]
[1688377829004,2.55878816,1960.2,1960.0,10.20392]
[1688377830072,2.55878816,1960.2,1960.0,12.75494]
[1688377830270,1.55,1960.4,1960.0,14.430694]
[1688377830498,5.10089,1960.5,1960.0,12.75494]
[1688377830499,2.55878816,1960.3,1960.0,12.75494]
[1688377831700,5.10089,1960.5,1960.0,12.75494]
[1688377831900,2.55878816,1960.4,1960.0,12.75494]
[1688377836276,7.65978816,1960.4,1960.0,12.75494]
[1688377837211,7.65978816,1960.4,1960.0,10.20392]
[1688377837782,12.76078816,1960.4,1960.0,10.20392]
[1688377838478,12.76078816,1960.4,1960.0,12.75494]
[1688377848226,12.76078816,1960.4,1960.0,10.20392]
[1688377849712,16.59827816,1960.4,1959.9,5.10218]
[1688377849918,0.02742971,1960.3,1959.8,5.10246]
[1688377850130,2.55878816,1960.2,1959.7,7.33015]
[1688377850347,16.85351816,1960.2,1959.8,10.20507]
[1688377850649,0.02796031,1960.1,1959.8,10.20507]
[1688377850955,0.02837895,1959.9,1959.8,10.20507]
[1688377851106,2.58716711,1959.9,1959.8,10.20507]
[1688377851503,2.55878816,1959.9,1959.8,12.75635]
[1688377856352,2.55878816,1959.9,1959.8,12.7564]
[1688377859369,2.59190968,1959.9,1959.8,12.7564]
[1688377859981,2.55878816,1959.9,1959.8,12.7564]
[1688377860362,2.59190968,1959.9,1959.8,12.7564]
[1688377861505,2.55878816,1959.9,1959.8,12.7564]
[1688377861627,2.59190968,1959.9,1959.8,12.7564]
[1688377866182,2.55878816,1959.9,1959.8,12.7564]
[1688377877388,6.65899336,1960.2,1959.8,12.7564]
[1688377877574,2.55878816,1960.1,1959.8,12.7564]
[1688377878311,0.02720969,1960.0,1959.8,12.7564]
[1688377878457,2.58599785,1960.0,1959.8,12.7564]
[1688377878657,2.55878816,1960.0,1959.8,12.7564]
[1688377882422,0.02617631,1959.9,1959.8,12.7564]
[1688377882894,2.55878816,1960.0,1959.8,12.7564]
[1688377884199,2.55878816,1960.0,1959.8,10.20512]
[1688377884402,2.55878816,1960.0,1959.8,5.10256]
[1688377884662,2.55878816,1959.9,1959.7,10.61601832]
[1688377885332,2.55878816,1959.9,1959.7,0.41063832]
[1688377885602,2.55878816,1959.9,1959.6,7.4989]
[1688377885813,0.02781925,1959.8,1959.6,7.4989]
[1688377886672,0.02781925,1959.8,1959.6,2.3959]
[1688377886891,2.55878816,1959.9,1959.6,2.3959]
[1688377887099,7.66108816,1959.9,1959.6,2.80536911]
[1688377887322,0.03052154,1959.8,1959.6,2.80536911]
[1688377888404,7.66108816,1959.9,1959.6,2.80536911]
[1688377888718,0.03052154,1959.8,1959.6,2.80536911]
[1688377888917,0.03052154,1959.8,1959.6,7.90841911]
[1688377890072,0.03052154,1959.8,1959.6,13.01149911]
[1688377890268,7.66108816,1959.9,1959.6,15.03761602]
[1688377891383,7.66108816,1959.9,1959.6,13.01149911]
[1688377892280,12.76347816,1959.9,1959.6,13.01149911]
[1688377893874,7.66108816,1959.9,1959.6,13.01149911]
[1688377894422,7.66108816,1959.9,1959.6,15.56303911]
[1688377896261,0.02970811,1959.8,1959.6,15.56303911]
[1688377896562,12.76352816,1959.9,1959.6,13.01149911]
[1688377896910,7.66108816,1959.9,1959.6,13.01149911]
[1688377897103,7.66108816,1959.9,1959.6,14.73761302]
[1688377899304,7.66108816,1959.9,1959.6,13.01149911]
[1688377901623,12.76338816,1959.9,1959.6,13.01149911]
[1688377902152,0.02768506,1959.8,1959.6,13.01149911]
[1688377902348,5.13029506,1959.8,1959.6,13.01149911]
[1688377902656,5.10261,1959.8,1959.6,13.01149911]
[1688377905276,5.10261,1959.8,1959.6,7.90841911]
[1688377905566,12.7565,1959.8,1959.6,0.1]
[1688377905732,10.20522,1959.8,1959.6,0.1]
[1688377906264,0.02985099,1959.7,1959.6,0.1]
[1688377906451,5.10261,1959.8,1959.6,0.05]
[1688377906680,5.10282,1959.7,1959.6,0.05]
[1688377907170,5.10282,1959.7,1959.6,5.15308]
[1688377909629,10.20533,1959.8,1959.6,5.15308]
[1688377910926,5.10261,1959.8,1959.6,5.15308]
[1688377911128,5.10261,1959.8,1959.6,10.25616]
[1688377911826,5.10261,1959.8,1959.6,11.68326863]
[1688377912026,0.02862274,1959.7,1959.6,11.68326863]
[1688377912231,5.10261,1959.8,1959.6,11.68326863]
[1688377915746,5.10261,1959.8,1959.6,6.58018863]
[1688377915912,10.20533,1959.8,1959.6,6.58018863]
[1688377916092,10.20533,1959.8,1959.6,5.15308]
[1688377931797,10.20533,1959.8,1959.6,0.05]
[1688377933802,0.02752502,1959.7,1959.6,0.05]
[1688377934300,10.20533,1959.8,1959.6,0.05]
[1688377939591,0.02831489,1959.7,1959.6,0.05]
[1688377940346,10.20533,1959.8,1959.6,0.05]
[1688377945959,0.0266728,1959.7,1959.6,0.05]
[1688377946233,5.1294928,1959.7,1959.6,0.05]
[1688377946432,5.10282,1959.7,1959.6,0.05]
[1688377948039,7.66160816,1959.7,1959.6,0.05]
[1688377948283,2.55878816,1959.7,1959.6,0.05]
[1688377949918,2.55878816,1959.7,1959.6,5.15308]
[1688377950416,10.2054,1959.8,1959.6,5.15308]
[1688377950570,12.76418816,1959.8,1959.6,5.15308]
[1688377951409,12.76418816,1959.8,1959.6,0.05]
[1688377951890,2.59761535,1959.7,1959.6,0.05]
[1688377952090,12.80325535,1959.7,1959.6,0.05]
[1688377953402,12.76442816,1959.7,1959.6,0.05]
[1688377953603,12.80325535,1959.7,1959.6,0.05]
[1688377955813,12.76442816,1959.7,1959.6,0.05]
[1688377956192,12.80325535,1959.7,1959.6,0.05]
[1688377957309,7.70043535,1959.7,1959.6,0.05]
[1688377957507,0.03882719,1959.7,1959.6,0.05]
[1688377957824,0.03882719,1959.7,1959.6,10.25616]
[1688377962007,0.03882719,1959.7,1959.6,5.15308]
[1688377968768,5.14164719,1959.7,1959.6,5.15308]
[1688377976071,5.14164719,1959.7,1959.6,0.05]
[1688377976072,12.80325535,1959.7,1959.6,0.05]
[1688377976275,12.76442816,1959.7,1959.6,0.05]
[1688377983587,12.79353543,1959.7,1959.6,0.05]
[1688377984443,12.76442816,1959.7,1959.6,0.05]
[1688377986497,7.66160816,1959.7,1959.6,5.15308]
[1688377987801,12.76442816,1959.7,1959.6,0.05]
[1688377996111,15.31583816,1959.7,1959.6,0.05]
[1688377996892,12.76442816,1959.7,1959.6,0.05]
[1688377998712,15.31583816,1959.7,1959.6,0.05]
[1688378026482,12.76442816,1959.7,1959.6,0.05]
[1688378027178,15.31583816,1959.7,1959.6,0.05]
[1688378028248,15.34437473,1959.7,1959.6,0.05]
[1688378028577,12.79296473,1959.7,1959.6,0.05]
[1688378029284,12.76442816,1959.7,1959.6,0.05]
[1688378029648,12.79138884,1959.7,1959.6,0.05]
[1688378030282,15.34279884,1959.7,1959.6,0.05]
[1688378030879,15.31583816,1959.7,1959.6,0.05]
[1688378031356,15.26583816,1959.7,1959.6,0.05]
[1688378032960,15.29351368,1959.7,1959.6,0.05]
[1688378035171,15.26583816,1959.7,1959.6,0.05]
[1688378035557,15.29444329,1959.7,1959.6,0.05]
[1688378040366,17.06183816,1959.7,1959.6,0.05]
[1688378040588,17.04183816,1959.7,1959.6,0.05]
[1688378040795,15.26583816,1959.7,1959.6,0.05]
[1688378041301,15.29698025,1959.7,1959.6,0.05]
[1688378046190,15.26583816,1959.7,1959.6,0.05]
[1688378046679,2.55878816,1959.7,1959.6,0.05]
[1688378046812,15.31583816,1959.7,1959.6,0.05]
[1688378047284,15.34198505,1959.7,1959.6,0.05]
[1688378047824,15.31583816,1959.7,1959.6,0.05]
[1688378053954,15.34238219,1959.7,1959.6,0.05]
[1688378054663,15.34238219,1959.7,1959.6,0.04700222]
[1688378054953,15.31583816,1959.7,1959.6,0.04700222]
[1688378057063,10.20564,1959.7,1959.6,0.04700222]
[1688378057265,5.10282,1959.7,1959.6,0.04700222]
[1688378057430,2.5,1959.8,1959.6,0.69163244]
[1688378057627,2.5,1959.8,1959.6,10.25316222]
[1688378057936,0.02967225,1959.7,1959.6,10.25316222]
[1688378058332,2.5,1959.8,1959.6,10.25316222]
[1688378059345,2.5,1959.8,1959.7,1.291]
[1688378059575,2.5,1959.8,1959.7,11.49664]
[1688378059869,2.5,1959.8,1959.7,12.90615822]
[1688378062272,2.5,1959.8,1959.7,15.45756822]
[1688378064896,2.5,1959.8,1959.7,12.90615822]
[1688378071288,2.5,1959.8,1959.7,13.30839229]
[1688378072417,2.5,1959.8,1959.7,15.85980229]
[1688378088645,2.5,1959.8,1959.7,13.30839229]
[1688378088845,2.5,1959.8,1959.7,11.89887407]
[1688378089057,2.5,1959.8,1959.7,6.79605407]
[1688378089224,2.5,1959.8,1959.6,0.04700222]
[1688378089623,15.2564,1959.8,1959.6,0.04700222]
[1688378090160,17.81518816,1959.8,1959.6,0.04700222]
[1688378096472,2.55878816,1959.7,1959.6,0.04700222]
[1688378096700,15.31583816,1959.7,1959.6,0.04700222]
[1688378097008,16.60883816,1959.7,1959.6,0.04700222]
[1688378101668,17.08883816,1959.7,1959.6,0.04700222]
[1688378107278,16.60883816,1959.7,1959.6,0.04700222]
[1688378108508,14.05742816,1959.7,1959.6,0.04700222]
[1688378108809,12.76442816,1959.7,1959.6,0.04700222]
[1688378109369,15.31583816,1959.7,1959.6,0.04700222]
[1688378109571,12.76442816,1959.7,1959.6,0.04700222]
[1688378109799,5.10282,1959.7,1959.6,0.04700222]
[1688378109990,5.10282,1959.7,1959.6,5.15008222]
[1688378110370,7.60271,1959.8,1959.6,6.17541344]
[1688378110577,2.5,1959.8,1959.6,11.27849344]
[1688378111521,2.5,1959.8,1959.6,13.83003344]
[1688378116375,2.5,1959.8,1959.6,11.27849344]
[1688378120290,7.60256,1959.8,1959.6,11.27849344]
[1688378120490,7.60256,1959.8,1959.6,6.17541344]
[1688378121014,7.60256,1959.8,1959.7,0.61754134]
[1688378121246,12.70512,1959.8,1959.6,6.17541344]
[1688378122151,12.70512,1959.8,1959.6,1.07233344]
[1688378122807,12.70512,1959.8,1959.6,0.04700222]
[1688378122808,15.2564,1959.8,1959.6,0.04700222]
[1688378123013,2.55878816,1959.7,1959.6,0.04700222]
[1688378123322,15.31583816,1959.7,1959.6,0.04700222]
[1688378123527,16.61183816,1959.7,1959.6,0.04700222]
[1688378125448,14.06042816,1959.7,1959.6,0.04700222]
[1688378125755,12.76442816,1959.7,1959.6,0.04700222]
[1688378126518,5.10282,1959.7,1959.6,0.04700222]
[1688378127552,7.60271,1959.8,1959.6,5.15008222]
[1688378127757,2.5,1959.8,1959.6,5.15008222]
[1688378127930,2.5,1959.8,1959.6,10.25316222]
[1688378128136,2.5,1959.8,1959.6,5.15008222]
[1688378128969,2.5,1959.8,1959.6,6.43057644]
[1688378129285,2.5,1959.8,1959.6,14.08519644]
[1688378132580,0.00272505,1959.7,1959.6,14.08519644]
[1688378133079,0.00272505,1959.7,1959.6,20.73819644]
[1688378141028,0.00272505,1959.7,1959.6,14.08519644]
[1688378141351,0.00272505,1959.7,1959.6,20.72619644]
[1688378144322,0.00272505,1959.7,1959.6,15.36919644]
[1688378145775,2.5,1959.8,1959.7,2.06851034]
[1688378145930,12.70512,1959.8,1959.7,2.06851034]
[1688378146125,15.26390816,1959.8,1959.7,2.06851034]
[1688378146631,17.81860497,1959.8,1959.7,2.06851034]
[1688378151080,17.81860497,1959.8,1959.6,0.04700222]
[1688378151322,12.76442816,1959.7,1959.6,0.04700222]
[1688378152365,15.31583816,1959.7,1959.6,0.04700222]
[1688378152548,15.31924447,1959.7,1959.6,0.04700222]
[1688378153494,17.08224447,1959.7,1959.6,0.04700222]
[1688378162436,14.53083447,1959.7,1959.6,0.04700222]
[1688378162647,9.42801447,1959.7,1959.6,0.04700222]
[1688378162830,8.94801447,1959.7,1959.6,0.04700222]
[1688378163203,7.66501447,1959.7,1959.6,0.04700222]